bitfinex/quotes_BTCUSD_20260127
["timestamp","ask_amount","ask_price","bid_price","bid_amount"]
[1769492583449,0.37601526,88620.0,88606.0,0.02429219]
[1769492583656,0.37601526,88620.0,88606.0,0.71330768]
[1769492583874,0.02495376,88626.0,88606.0,0.78464582]
[1769492584082,0.37601526,88620.0,88606.0,0.78464582]
[1769492585307,0.37601526,88620.0,88606.0,0.71330768]
[1769492587636,0.37601526,88620.0,88606.0,0.68901549]
[1769492587844,0.37601526,88620.0,88601.0,0.71330768]
[1769492590375,0.40096902,88620.0,88601.0,0.71330768]
[1769492592462,1.06830345,88620.0,88601.0,0.71330768]
[1769492593061,1.06830345,88620.0,88601.0,0.79369032]
[1769492594035,0.66733443,88619.0,88601.0,0.79369032]
[1769492596705,0.02495376,88620.0,88601.0,0.76939813]
[1769492596929,0.37601526,88620.0,88604.0,0.02429219]
[1769492597132,0.37601526,88620.0,88605.0,0.68901549]
[1769492600937,0.4004766,88620.0,88605.0,0.68901549]
[1769492603741,0.40038073,88620.0,88605.0,0.68901549]
[1769492604100,0.37591939,88620.0,88605.0,0.68901549]
[1769492604317,0.02363245,88619.0,88605.0,0.68901549]
[1769492605136,0.02363245,88619.0,88605.0,0.76132175]
[1769492609351,0.02363245,88619.0,88605.0,0.68901549]
[1769492610493,0.02363245,88619.0,88599.0,0.02276014]
[1769492610743,0.02363245,88619.0,88600.0,0.682777]
[1769492612243,0.02463245,88619.0,88600.0,0.682777]
[1769492613642,0.02363245,88619.0,88600.0,0.682777]
[1769492614282,0.37591939,88610.0,88600.0,0.0795983]
[1769492614497,0.37591939,88610.0,88599.0,7.377e-05]
[1769492623801,0.02363245,88609.0,88599.0,7.377e-05]
[1769492624646,0.02363245,88607.0,88599.0,7.377e-05]
[1769492624984,0.02363245,88607.0,88599.0,0.00107377]
[1769492626053,0.02331728,88607.0,88599.0,0.00107377]
[1769492626192,0.02300208,88607.0,88599.0,7.377e-05]
[1769492628263,0.02268691,88607.0,88600.0,0.01161797]
[1769492629318,0.02268691,88607.0,88599.0,7.377e-05]
[1769492635346,0.02313649,88606.0,88599.0,7.377e-05]
[1769492635543,0.02313649,88605.0,88599.0,7.377e-05]
[1769492637227,0.02313649,88605.0,88596.0,0.0001459]
[1769492637380,0.02313649,88605.0,88590.0,0.11596]
[1769492637381,0.02326296,88605.0,88590.0,0.11596]
[1769492637904,0.37591939,88600.0,88590.0,0.11596]
[1769492641582,0.02326296,88605.0,88590.0,0.89726043]
[1769492641777,0.00012647,88605.0,88591.0,0.69897748]
[1769492642334,0.00012647,88605.0,88591.0,0.72319099]
[1769492644556,0.00012647,88605.0,88591.0,0.69897748]
[1769492644715,0.00012647,88605.0,88592.0,0.02421351]
[1769492644918,0.00012647,88605.0,88592.0,0.72319099]
[1769492648983,0.00012647,88605.0,88592.0,0.69897748]
[1769492649178,0.84161252,88610.0,88593.0,0.02421351]
[1769492649381,0.84161252,88610.0,88594.0,0.08393369]
[1769492657995,0.84161252,88610.0,88593.0,0.02433998]
[1769492658666,0.84161252,88610.0,88593.0,0.01253998]
[1769492663381,0.84161252,88610.0,88593.0,0.64402999]
[1769492665178,0.84129724,88610.0,88593.0,0.64402999]
[1769492665568,0.84137418,88610.0,88593.0,0.64402999]
[1769492665789,0.84137418,88610.0,88594.0,0.07714642]
[1769492671937,0.84137418,88610.0,88594.0,0.07714642]
[1769492674994,0.84137418,88610.0,88594.0,0.63149001]
[1769492677518,0.37599633,88610.0,88594.0,0.63149001]
[1769492677852,0.37599633,88610.0,88596.0,0.65521716]
[1769492679344,0.02409085,88616.0,88596.0,0.65521716]
[1769492679544,0.37599633,88610.0,88596.0,0.65521716]
[1769492679751,0.37599633,88610.0,88597.0,0.06553436]
[1769492682355,0.40008718,88610.0,88593.0,0.00012647]
[1769492688103,0.22309951,88610.0,88593.0,0.00012647]
[1769492688283,0.40008718,88610.0,88593.0,0.00012647]
[1769492692258,0.40726139,88583.0,88552.0,0.0001459]
[1769492692511,0.62187392,88551.0,88549.0,0.02338159]
[1769492692711,0.62187392,88551.0,88549.0,0.7052699]
[1769492693119,0.62187392,88551.0,88549.0,0.0001235]
[1769492693735,0.62161133,88551.0,88549.0,0.0001235]
[1769492695828,0.62161133,88551.0,88550.0,0.68176481]
[1769492696268,0.62161133,88551.0,88549.0,0.0001235]
[1769492696621,0.01769656,88550.0,88549.0,0.0001235]
[1769492698888,0.01769656,88550.0,88545.0,0.69966582]
[1769492699062,0.01769656,88550.0,88545.0,0.67628423]
[1769492699274,0.01769656,88550.0,88547.0,0.68176481]
[1769492700446,5.266e-05,88551.0,88547.0,0.68176481]
[1769492700655,0.03391806,88563.0,88548.0,0.08182542]
[1769492700862,0.39985991,88570.0,88551.0,0.68176481]
[1769492701036,0.39985991,88570.0,88551.0,0.06020581]
[1769492701239,0.03391806,88564.0,88551.0,0.0835874]
[1769492702162,0.37599633,88561.0,88551.0,0.0835874]
[1769492703011,0.37599633,88561.0,88551.0,0.02338159]
[1769492704240,0.37599633,88561.0,88551.0,0.0231678]
[1769492707133,0.37599633,88561.0,88551.0,0.02205216]
[1769492707332,0.37599633,88561.0,88548.0,0.00046759]
[1769492708386,0.37599633,88561.0,88547.0,0.02338159]
[1769492708517,0.37599633,88561.0,88547.0,0.0234871]
[1769492709330,0.37599633,88561.0,88548.0,0.02338159]
[1769492709529,0.37599633,88561.0,88548.0,0.07014714]
[1769492711436,0.37599633,88561.0,88548.0,0.02338159]
[1769492715188,0.66182947,88568.0,88548.0,0.68176481]
[1769492715348,0.66182947,88568.0,88550.0,0.68176481]
[1769492715549,0.03391806,88565.0,88552.0,0.02338159]
[1769492715757,0.03391806,88565.0,88552.0,0.02295594]
[1769492717175,0.37599633,88562.0,88552.0,0.02295594]
[1769492718225,0.37599633,88562.0,88552.0,0.02136317]
[1769492718434,0.37599633,88562.0,88552.0,0.00956317]
[1769492719761,0.37599633,88562.0,88554.0,0.02338159]
[1769492721309,0.11259127,88561.0,88554.0,0.02338159]
[1769492721541,0.37599633,88562.0,88554.0,0.02338159]
[1769492721731,0.11259124,88561.0,88554.0,0.02338159]
[1769492721961,0.37599633,88562.0,88554.0,0.02338159]
[1769492722171,0.11284733,88561.0,88554.0,0.02338159]
[1769492722377,0.11284733,88560.0,88554.0,0.02338159]
[1769492722551,0.11284733,88559.0,88554.0,0.02338159]
[1769492722752,0.11284733,88558.0,88554.0,0.02338159]
[1769492722975,0.11284733,88557.0,88554.0,0.02338159]
[1769492723115,0.11284733,88556.0,88554.0,0.02338159]
[1769492723470,0.11284852,88555.0,88554.0,0.02338159]
[1769492723814,0.11284852,88555.0,88549.0,0.02490602]
[1769492724021,0.37599633,88562.0,88549.0,0.02490602]
[1769492724217,0.1128505,88561.0,88549.0,0.02490602]
[1769492724418,0.1128505,88560.0,88549.0,0.02490602]
[1769492724618,0.1128505,88559.0,88549.0,0.02490602]
[1769492724832,0.1128505,88558.0,88549.0,0.02490602]
[1769492725085,0.1128505,88557.0,88549.0,0.02490602]
[1769492725307,0.1128505,88556.0,88549.0,0.02490602]
[1769492725530,0.1128505,88555.0,88549.0,0.02490602]
[1769492725751,0.1128505,88554.0,88549.0,0.67099235]
[1769492725928,0.37646379,88559.0,88549.0,0.67099235]
[1769492725929,0.1128505,88553.0,88549.0,0.67099235]
[1769492726149,0.37646379,88559.0,88549.0,0.67099235]
[1769492726346,0.11285908,88558.0,88549.0,0.67099235]
[1769492726547,0.11285908,88557.0,88549.0,0.67099235]
[1769492726939,0.11285908,88556.0,88549.0,0.67099235]
[1769492727152,0.11285908,88555.0,88549.0,0.67099235]
[1769492727297,0.11285908,88554.0,88549.0,0.65665742]
[1769492727533,0.37646379,88559.0,88549.0,0.65665742]
[1769492727730,0.11286407,88558.0,88549.0,0.65665742]
[1769492727931,0.11286407,88557.0,88549.0,0.71968593]
[1769492728134,0.11286407,88556.0,88549.0,0.0735996]
[1769492728320,0.11286407,88555.0,88547.0,0.00010551]
[1769492728518,0.11286407,88554.0,88547.0,0.00010551]
[1769492728727,0.11286407,88553.0,88547.0,0.00010551]
[1769492728904,0.37646379,88559.0,88547.0,0.00010551]
[1769492729107,0.1128704,88558.0,88547.0,0.00010551]
[1769492729307,0.1128704,88557.0,88547.0,0.00010551]
[1769492729526,0.1128704,88556.0,88547.0,0.00010551]
[1769492729747,0.1128704,88555.0,88547.0,0.00010551]
[1769492730060,0.1128704,88554.0,88547.0,0.00010551]
[1769492730289,0.1128704,88553.0,88547.0,0.00010551]
[1769492730494,0.37646379,88559.0,88547.0,0.00010551]
[1769492730697,0.1693941,88558.0,88547.0,0.00010551]
[1769492730898,0.11288015,88557.0,88547.0,0.00010551]
[1769492731085,0.11288006,88556.0,88547.0,0.00010551]
[1769492731322,0.11288006,88555.0,88547.0,0.00010551]
[1769492731521,0.11288006,88554.0,88547.0,0.00010551]
[1769492731715,0.11288006,88553.0,88547.0,0.00010551]
[1769492731878,0.37646379,88559.0,88547.0,0.00010551]
[1769492732078,0.11288372,88558.0,88547.0,0.00010551]
[1769492732284,0.11288372,88557.0,88547.0,0.00010551]
[1769492732478,0.11288372,88556.0,88547.0,0.00010551]
[1769492732661,0.11288372,88555.0,88547.0,0.00010551]
[1769492732871,0.11288372,88554.0,88547.0,0.00010551]
[1769492733071,0.11288372,88553.0,88547.0,0.00010551]
[1769492733295,0.37646379,88559.0,88547.0,0.00010551]
[1769492733617,0.11288602,88558.0,88547.0,0.00010551]
[1769492733824,0.11288602,88557.0,88547.0,0.00010551]
[1769492733957,0.11288602,88556.0,88547.0,0.00010551]
[1769492734198,0.11288602,88555.0,88547.0,0.00010551]
[1769492734404,0.11288602,88554.0,88547.0,0.00010551]
[1769492734604,0.37646379,88559.0,88547.0,0.00010551]
[1769492734805,0.11288734,88558.0,88547.0,0.00010551]
[1769492735005,0.11288734,88557.0,88547.0,0.00010551]
[1769492735256,0.11288734,88556.0,88547.0,0.00010551]
[1769492735460,0.37646379,88559.0,88548.0,0.05646652]
[1769492735661,0.37646379,88570.0,88558.0,0.64608633]
[1769492735858,0.37646379,88570.0,88560.0,0.64608633]
[1769492744360,0.37646379,88570.0,88560.0,0.7471443]
[1769492744584,0.37646379,88570.0,88560.0,0.77205032]
[1769492744998,0.37646379,88570.0,88561.0,0.01129165]
[1769492745195,0.0001748,88579.0,88568.0,0.64608633]
[1769492745417,0.0001748,88579.0,88569.0,0.67099235]
[1769492745676,0.0001748,88579.0,88570.0,0.07613216]
[1769492747191,0.0001748,88579.0,88570.0,0.06687017]
[1769492747620,0.11274699,88578.0,88570.0,0.06687017]
[1769492747793,0.11274699,88577.0,88570.0,0.06687017]
[1769492747989,0.0001748,88579.0,88570.0,0.06687017]
[1769492748217,0.11274335,88578.0,88571.0,0.07378625]
[1769492748455,0.0001748,88579.0,88571.0,0.07378625]
[1769492750371,0.0001748,88579.0,88569.0,0.64608633]
[1769492752391,0.37646379,88580.0,88569.0,0.64608633]
[1769492754120,0.37646379,88580.0,88569.0,0.65737696]
[1769492754327,0.37646379,88580.0,88571.0,0.72057109]
[1769492755277,0.37746379,88580.0,88571.0,0.69595831]
[1769492756052,0.37646379,88580.0,88571.0,0.69595831]
[1769492757185,0.37746379,88580.0,88571.0,0.69595831]
[1769492757794,0.37646379,88580.0,88571.0,0.69595831]
[1769492757999,0.37646379,88580.0,88571.0,0.78382253]
[1769492758206,0.37746379,88580.0,88571.0,0.08786422]
[1769492758612,0.37746379,88580.0,88566.0,0.72057109]
[1769492758816,0.37646379,88576.0,88566.0,0.7318621]
[1769492759241,0.37646379,88576.0,88566.0,0.69595831]
[1769492760209,0.37646379,88576.0,88565.0,0.01129114]
[1769492760373,0.37646379,88576.0,88562.0,0.01129152]
[1769492760578,0.37646379,88572.0,88566.0,0.11604]
[1769492760758,0.02260559,88578.0,88566.0,0.11604]
[1769492760759,0.37646379,88576.0,88566.0,0.11604]
[1769492761927,0.37646379,88576.0,88566.0,0.11704]
[1769492762083,0.02260559,88578.0,88566.0,0.11704]
[1769492762281,0.02260559,88578.0,88566.0,0.12833101]
[1769492762478,0.02260559,88578.0,88566.0,0.12733101]
[1769492762809,0.02260559,88578.0,88566.0,0.11704]
[1769492763238,0.02260559,88578.0,88566.0,0.12833101]
[1769492764003,0.02260559,88578.0,88566.0,0.12733101]
[1769492764200,0.02260559,88578.0,88566.0,0.12833101]
[1769492764406,0.02260559,88578.0,88566.0,0.11704]
[1769492764665,0.02260559,88578.0,88566.0,0.12733101]
[1769492765019,0.02260559,88578.0,88566.0,0.12833101]
[1769492766057,0.02260559,88578.0,88567.0,0.11160278]
[1769492766267,0.02260559,88578.0,88567.0,0.12289366]
[1769492766892,0.02260559,88578.0,88567.0,0.11160278]
[1769492767095,0.02260559,88578.0,88567.0,0.12289366]
[1769492767305,0.02260559,88578.0,88566.0,0.12733101]
[1769492767306,0.02260559,88578.0,88566.0,0.12833101]
[1769492767512,0.02260559,88578.0,88567.0,0.01129088]
[1769492767693,0.02260559,88578.0,88566.0,0.12833101]
[1769492767851,0.02260559,88578.0,88566.0,0.12733101]
[1769492768051,0.02260559,88578.0,88567.0,0.12389366]
[1769492768720,0.02260559,88578.0,88567.0,0.11160278]
[1769492769885,0.02260559,88578.0,88566.0,0.11704]
[1769492770326,0.02260559,88578.0,88566.0,0.11604]
[1769492770865,0.02260559,88578.0,88567.0,0.001]
[1769492771023,0.02260559,88578.0,88566.0,0.11604]
[1769492771440,0.02360559,88578.0,88566.0,0.11604]
[1769492772731,0.02260559,88578.0,88566.0,0.11604]
[1769492774204,0.02360559,88578.0,88566.0,0.11604]
[1769492776417,0.02360559,88578.0,88566.0,0.13646214]
[1769492776822,0.02360559,88578.0,88566.0,0.11604]
[1769492788490,0.02360559,88578.0,88567.0,0.01129088]
[1769492788842,0.02360559,88578.0,88568.0,0.01129075]
[1769492790533,0.02260559,88578.0,88569.0,0.01129063]
[1769492790741,0.02260559,88578.0,88568.0,0.01129075]
[1769492790958,0.02360559,88578.0,88568.0,0.01129075]
[1769492791614,0.02260559,88578.0,88568.0,0.01129075]
[1769492791791,0.02260559,88578.0,88567.0,0.01129088]
[1769492791995,0.02260559,88578.0,88568.0,0.01129075]
[1769492792282,0.02260559,88578.0,88567.0,0.01129088]
[1769492792705,0.02260559,88578.0,88568.0,0.01129075]
[1769492792921,0.02260559,88578.0,88567.0,0.01129088]
[1769492793672,0.02260559,88578.0,88568.0,0.01129075]
[1769492795200,0.02260559,88578.0,88569.0,0.01129063]
[1769492796713,0.02260559,88578.0,88570.0,0.0112905]
[1769492796945,0.02260559,88578.0,88569.0,0.01129063]
[1769492797330,0.02260559,88578.0,88570.0,0.0112905]
[1769492797602,0.0001076,88587.0,88570.0,0.0112905]
[1769492797603,0.0001076,88587.0,88571.0,0.01129037]
[1769492797815,0.11288401,88586.0,88572.0,0.01129024]
[1769492798037,0.11288401,88585.0,88572.0,0.01129024]
[1769492798255,0.02558495,88586.0,88572.0,0.01129024]
[1769492798479,0.11287862,88585.0,88572.0,0.01129024]
[1769492798679,0.02558495,88586.0,88572.0,0.01129024]
[1769492798881,0.11287853,88585.0,88572.0,0.01129024]
[1769492799091,0.02558495,88586.0,88572.0,0.05437811]
[1769492799308,0.11287853,88585.0,88572.0,0.05437811]
[1769492799512,0.02558495,88586.0,88572.0,0.05437811]
[1769492799513,0.02558495,88586.0,88573.0,0.74312756]
[1769492799714,0.02558495,88586.0,88574.0,0.01128999]
[1769492799938,0.376273,88583.0,88574.0,0.01128999]
[1769492800148,0.376273,88583.0,88573.0,0.68667707]
[1769492800969,0.3767405,88583.0,88573.0,0.69995566]
[1769492801594,0.3777405,88583.0,88573.0,0.69995566]
[1769492801796,0.3777405,88583.0,88574.0,0.01128999]
[1769492802832,0.0001645,88597.0,88585.0,0.67538695]
[1769492803040,0.00030472,88597.0,88587.0,0.67538695]
[1769492803360,0.37657772,88597.0,88588.0,0.08372011]
[1769492803591,0.00030472,88597.0,88588.0,0.08372011]
[1769492803804,0.02442994,88597.0,88588.0,0.08372011]
[1769492804006,0.02442994,88597.0,88589.0,0.0301318]
[1769492804435,0.02412522,88599.0,88589.0,0.0301318]
[1769492804635,0.001,88597.0,88589.0,0.0301318]
[1769492805250,0.02412522,88599.0,88589.0,0.0301318]
[1769492805557,0.02412522,88599.0,88590.0,0.01288415]
[1769492807329,0.02412522,88599.0,88590.0,0.01388415]
[1769492807531,0.02412522,88599.0,88590.0,0.001]
[1769492807816,0.02412522,88599.0,88588.0,0.09500832]
[1769492808039,8.961e-05,88599.0,88588.0,0.68667516]
[1769492808244,8.961e-05,88599.0,88591.0,0.01128782]
[1769492808455,8.961e-05,88599.0,88592.0,0.68667465]
[1769492808663,8.961e-05,88599.0,88592.0,0.67538695]
[1769492808868,8.961e-05,88599.0,88593.0,0.09613688]
[1769492809078,8.961e-05,88599.0,88593.0,0.10742445]
[1769492809285,8.961e-05,88599.0,88593.0,0.09613688]
[1769492809960,0.00108961,88599.0,88593.0,0.09613688]
[1769492810163,0.00108961,88599.0,88592.0,0.68667465]
[1769492810368,8.961e-05,88599.0,88592.0,0.0112877]
[1769492810548,8.961e-05,88599.0,88593.0,0.01128757]
[1769492810753,8.961e-05,88599.0,88593.0,0.01228757]
[1769492810959,8.961e-05,88599.0,88593.0,0.001]
[1769492811339,8.961e-05,88599.0,88592.0,0.0112877]
[1769492811681,8.961e-05,88599.0,88593.0,0.01128757]
[1769492812095,8.961e-05,88599.0,88592.0,0.12289048]
[1769492812491,8.961e-05,88599.0,88593.0,0.01128757]
[1769492812792,8.961e-05,88599.0,88592.0,0.12289048]
[1769492813159,8.961e-05,88599.0,88593.0,0.001]
[1769492813360,8.961e-05,88599.0,88593.0,0.06649502]
[1769492813538,8.961e-05,88599.0,88593.0,0.06549502]
[1769492814789,8.961e-05,88599.0,88593.0,0.06649502]
[1769492814965,8.961e-05,88599.0,88593.0,0.001]
[1769492815991,8.961e-05,88599.0,88591.0,0.67538695]
[1769492821565,0.49927389,88609.0,88591.0,0.67538695]
[1769492822575,0.49927389,88609.0,88592.0,0.69397488]
[1769492822777,0.49927389,88609.0,88593.0,0.02374368]
[1769492822980,0.49927389,88609.0,88594.0,0.05649908]
[1769492824800,0.376273,88610.0,88594.0,0.69397488]
[1769492825044,0.376273,88610.0,88595.0,0.02374368]
[1769492825691,0.376273,88610.0,88596.0,0.71771856]
[1769492825870,0.376273,88610.0,88596.0,0.72900575]
[1769492826095,0.49927389,88614.0,88596.0,0.70526207]
[1769492826247,0.376273,88610.0,88597.0,0.7917479]
[1769492826428,0.376273,88610.0,88597.0,0.71771856]
[1769492828074,0.376273,88620.0,88599.0,0.69397488]
[1769492828279,0.376273,88620.0,88600.0,0.02374368]
[1769492828535,0.376273,88610.0,88601.0,0.18777186]
[1769492828781,0.376273,88610.0,88601.0,0.18767185]
[1769492828981,0.376273,88610.0,88601.0,0.18747185]
[1769492829278,0.376273,88610.0,88601.0,0.116]
[1769492829709,0.14924754,88610.0,88601.0,0.116]
[1769492829927,0.001,88611.0,88601.0,0.116]
[1769492830304,0.377273,88611.0,88601.0,0.116]
[1769492830445,0.376273,88611.0,88601.0,0.116]
[1769492831165,0.001,88610.0,88601.0,0.116]
[1769492831704,0.376273,88611.0,88601.0,0.116]
[1769492832500,0.376273,88611.0,88601.0,0.1673736]
[1769492832887,0.377273,88611.0,88601.0,0.1673736]
[1769492833120,0.377273,88611.0,88601.0,0.116]
[1769492834106,0.377273,88611.0,88601.0,0.83371856]
[1769492834815,0.377273,88611.0,88601.0,0.116]
[1769492835609,0.001,88611.0,88601.0,0.116]
[1769492835762,0.001,88611.0,88601.0,0.83371856]
[1769492836382,0.376273,88611.0,88602.0,0.08337186]
[1769492836759,0.377273,88611.0,88602.0,0.08337186]
[1769492837164,0.376273,88611.0,88602.0,0.08337186]
[1769492837793,0.376273,88611.0,88601.0,0.83371856]
[1769492838202,0.376273,88611.0,88601.0,0.13974368]
[1769492840611,0.377273,88611.0,88601.0,0.13974368]
[1769492841211,0.52136315,88617.0,88601.0,0.13974368]
[1769492841449,0.376273,88611.0,88601.0,0.13974368]
[1769492841658,0.376273,88611.0,88601.0,0.22311554]
[1769492841857,0.377273,88611.0,88601.0,0.22311554]
[1769492842967,0.376273,88611.0,88601.0,0.22311554]
[1769492844109,0.377273,88611.0,88601.0,0.22311554]
[1769492844529,0.376273,88611.0,88601.0,0.22311554]
[1769492844713,0.376273,88611.0,88602.0,0.09170904]
[1769492844892,0.377273,88611.0,88602.0,0.09170904]
[1769492845088,0.377273,88611.0,88601.0,0.13974368]
[1769492846154,0.376273,88611.0,88601.0,0.13974368]
[1769492846517,0.377273,88611.0,88601.0,0.13974368]
[1769492846928,0.376273,88611.0,88601.0,0.13974368]
[1769492847407,0.377273,88611.0,88601.0,0.13974368]
[1769492847795,0.376273,88611.0,88601.0,0.116]
[1769492848255,0.377273,88611.0,88601.0,0.116]
[1769492848456,0.19861796,88611.0,88601.0,0.116]
[1769492849494,0.19761796,88611.0,88601.0,0.116]
[1769492849698,0.37599848,88611.0,88601.0,0.116]
[1769492854544,0.37599848,88611.0,88602.0,0.08331869]
[1769492855448,0.37599848,88611.0,88601.0,0.116]
[1769492857963,8.131e-05,90839.0,88603.0,0.023212]
[1769492857964,0.37599848,88630.0,88603.0,0.023212]
[1769492858138,0.37599848,88620.0,88606.0,0.68322225]
[1769492858467,0.37599848,88620.0,88609.0,0.023212]
[1769492858679,0.37599848,88620.0,88607.0,0.68322225]
[1769492859444,0.001,88611.0,88607.0,0.68322225]
[1769492859642,0.001,88611.0,88607.0,0.70643425]
[1769492860095,0.37599848,88620.0,88607.0,0.70643425]
[1769492860451,0.0011471,88619.0,88607.0,0.70643425]
[1769492860994,0.0001471,88619.0,88607.0,0.70643425]
[1769492862348,0.0011471,88619.0,88607.0,0.70643425]
[1769492864077,0.0001471,88619.0,88607.0,0.70643425]
[1769492865509,0.0011471,88619.0,88607.0,0.70643425]
[1769492865939,0.0001471,88619.0,88607.0,0.70643425]
[1769492866310,0.0011471,88619.0,88607.0,0.70643425]
[1769492866748,0.0001471,88619.0,88607.0,0.70643425]
[1769492867157,0.0011471,88619.0,88607.0,0.70643425]
[1769492868455,0.0001471,88619.0,88607.0,0.70643425]
[1769492868668,0.0011471,88619.0,88607.0,0.70643425]
[1769492869082,0.0001471,88619.0,88607.0,0.70643425]
[1769492869483,0.0011471,88619.0,88607.0,0.78867768]
[1769492869677,0.0011471,88619.0,88607.0,0.70643425]
[1769492870155,0.0001471,88619.0,88607.0,0.70643425]
[1769492870357,0.0011471,88619.0,88607.0,0.70643425]
[1769492871593,0.0001471,88619.0,88607.0,0.70643425]
[1769492871961,0.0011471,88619.0,88607.0,0.70643425]
[1769492872351,0.0001471,88619.0,88607.0,0.70643425]
[1769492872728,0.0011471,88619.0,88607.0,0.70643425]
[1769492873171,0.0001471,88619.0,88607.0,0.70643425]
[1769492873554,0.0011471,88619.0,88607.0,0.70643425]
[1769492882652,0.14227915,88620.0,88607.0,0.70643425]
[1769492884996,0.14327915,88620.0,88607.0,0.70643425]
[1769492885741,0.14227915,88620.0,88607.0,0.70643425]
[1769492885969,0.14327915,88620.0,88607.0,0.70643425]
[1769492886327,0.14227915,88620.0,88607.0,0.70643425]
[1769492887809,0.14327915,88620.0,88608.0,0.10569462]
[1769492888052,0.14327915,88620.0,88610.0,0.02345119]
[1769492888053,0.001,88620.0,88610.0,0.02345119]
[1769492888228,0.37599848,88630.0,88613.0,0.68465751]
[1769492888410,0.00028722,88628.0,88613.0,0.68465751]
[1769492888612,0.001,88620.0,88614.0,0.07193945]
[1769492888908,0.00028722,88628.0,88614.0,0.07193945]
[1769492889325,0.00128722,88628.0,88617.0,0.7081087]
[1769492890843,0.00028722,88628.0,88617.0,0.7081087]
[1769492891141,0.00128722,88628.0,88618.0,0.05384458]
[1769492891671,0.00028722,88628.0,88618.0,0.05384458]
[1769492891848,0.00128722,88628.0,88618.0,0.05384458]
[1769492892458,0.00028722,88628.0,88618.0,0.02345119]
[1769492892702,0.00028722,88628.0,88619.0,0.7081087]
[1769492892993,0.00128722,88628.0,88619.0,0.7081087]
[1769492894185,0.00028722,88628.0,88619.0,0.7081087]
[1769492894391,0.00128722,88628.0,88619.0,0.90207352]
[1769492896290,0.00128722,88628.0,88619.0,0.11596]
[1769492896502,0.66329209,88627.0,88619.0,0.11596]
[1769492896696,0.37599848,88620.0,88604.0,0.08284267]
[1769492896900,0.37599848,88614.0,88604.0,0.11596]
[1769492897040,0.34208792,88614.0,88604.0,0.11596]
[1769492897240,0.0243251,88619.0,88604.0,0.11596]
[1769492897442,0.37599848,88614.0,88604.0,0.11596]
[1769492897642,0.34208791,88614.0,88604.0,0.11596]
[1769492897868,0.30817734,88614.0,88604.0,0.11596]
[1769492898064,0.0243251,88619.0,88604.0,0.11596]
[1769492901501,0.0253251,88619.0,88604.0,0.11596]
[1769492904192,0.10646157,88618.0,88604.0,0.11596]
[1769492904352,0.37599848,88614.0,88604.0,0.11596]
[1769492904558,0.39956165,88614.0,88604.0,0.11596]
[1769492907762,0.40056165,88614.0,88604.0,0.11596]
[1769492907963,0.37699848,88614.0,88604.0,0.11596]
[1769492908588,0.37599848,88614.0,88604.0,0.11596]
[1769492909175,0.37599848,88614.0,88589.0,0.02374034]
[1769492909176,0.01,88604.0,88589.0,0.02374034]
[1769492909354,0.37599848,88600.0,88589.0,0.02374034]
[1769492909706,0.37608213,88600.0,88589.0,0.02374034]
[1769492910112,0.37608213,88600.0,88588.0,0.0001471]
[1769492910530,0.37608213,88600.0,88588.0,0.00023671]
[1769492912091,1.03372788,88600.0,88588.0,0.00023671]
[1769492912992,0.82606923,88600.0,88588.0,0.00023671]
[1769492914874,1.03372788,88600.0,88588.0,0.00023671]
[1769492919894,0.76101854,88599.0,88588.0,0.00023671]
[1769492920106,0.65764575,88599.0,88582.0,0.11596]
[1769492920282,0.65764575,88591.0,88582.0,0.11596]
[1769492920728,0.65764575,88591.0,88581.0,0.1476]
[1769492921693,0.65764575,88591.0,88580.0,0.0001471]
[1769492921694,0.37608213,88591.0,88580.0,0.0001471]
[1769492922047,0.65864575,88591.0,88580.0,0.0001471]
[1769492923376,0.65764575,88591.0,88580.0,0.0001471]
[1769492923547,0.65864575,88591.0,88580.0,0.0001471]
[1769492924059,0.65764575,88591.0,88580.0,0.0001471]
[1769492924298,0.37608213,88592.0,88580.0,0.0001471]
[1769492926993,0.37608213,88586.0,88572.0,0.63079164]
[1769492927214,0.37608213,88581.0,88573.0,0.05181675]
[1769492927686,0.66137118,88589.0,88573.0,0.05181675]
[1769492927894,0.37608213,88583.0,88573.0,0.05181675]
[1769492928102,0.66137118,88589.0,88573.0,0.05181675]
[1769492928103,0.66137118,88589.0,88573.0,0.05199545]
[1769492928306,0.66137118,88589.0,88574.0,0.09859131]
[1769492928512,0.37608213,88590.0,88575.0,0.63079164]
[1769492928741,0.37608213,88590.0,88577.0,0.05181675]
[1769492929186,0.37608213,88590.0,88577.0,0.05199545]
[1769492932715,0.37708213,88590.0,88577.0,0.05199545]
[1769492933322,0.37708213,88590.0,88578.0,0.05631469]
[1769492934109,0.37708213,88590.0,88578.0,0.05649339]
[1769492934313,0.37608213,88590.0,88578.0,0.05649339]
[1769492935819,0.37708213,88590.0,88578.0,0.05649339]
[1769492938815,0.37608213,88590.0,88578.0,0.05649339]
[1769492939940,0.62807292,88597.0,88578.0,0.05649339]
[1769492940139,0.37608213,88590.0,88578.0,0.05649339]
[1769492940649,0.37608213,88590.0,88578.0,0.12832679]
[1769492940805,0.62807292,88597.0,88581.0,0.05856365]
[1769492941038,0.62807292,88597.0,88582.0,0.05856365]
[1769492942063,0.00011066,88599.0,88583.0,0.66184066]
[1769492942229,0.00011066,88599.0,88586.0,0.05856365]
[1769492942410,0.00011066,88599.0,88588.0,0.05856365]
[1769492943313,0.00111066,88599.0,88588.0,0.05856365]
[1769492943856,0.00011066,88599.0,88588.0,0.05856365]
[1769492944265,0.00011066,88599.0,88588.0,0.05956365]
[1769492945545,0.00011066,88599.0,88588.0,0.05856365]
[1769492945980,0.00011066,88599.0,88588.0,0.05956365]
[1769492949746,0.00011066,88599.0,88589.0,0.06346169]
[1769492950508,0.00011066,88599.0,88588.0,0.05956365]
[1769492950810,0.00011066,88599.0,88588.0,0.05856365]
[1769492952016,0.00011066,88599.0,88589.0,0.001]
[1769492952576,0.00011066,88599.0,88588.0,0.05856365]
[1769492952898,0.00011066,88599.0,88588.0,0.05956365]
[1769492953460,0.00011066,88599.0,88588.0,0.05856365]
[1769492954071,0.36702638,88600.0,88588.0,0.05956365]
[1769492954307,0.36702638,88600.0,88588.0,0.05967431]
[1769492955103,0.36702638,88600.0,88588.0,0.05867431]
[1769492955532,0.36702638,88600.0,88588.0,0.05967431]
[1769492955923,0.36702638,88600.0,88588.0,0.05867431]
[1769492956138,0.76878713,88600.0,88588.0,0.05867431]
[1769492956484,0.76878713,88600.0,88588.0,0.05967431]
[1769492960031,0.07687871,88599.0,88588.0,0.05967431]
[1769492960646,0.07687871,88599.0,88588.0,0.00111066]
[1769492961326,0.07687871,88599.0,88588.0,0.00011066]
[1769492961709,0.07687871,88599.0,88588.0,0.00111066]
[1769492964707,0.76878713,88600.0,88588.0,0.00111066]
[1769492965552,0.76878713,88600.0,88588.0,0.00011066]
[1769492965996,0.76878713,88600.0,88588.0,0.00111066]
[1769492970366,0.76878713,88600.0,88588.0,0.00011066]
[1769492970735,0.76878713,88600.0,88588.0,0.00111066]
[1769492971565,1.00418553,88600.0,88588.0,0.00111066]
[1769492972648,0.37611261,88600.0,88588.0,0.00111066]